bitfinex-derivatives/quotes_BTCF0:USTF0_20241025
["timestamp","ask_amount","ask_price","bid_price","bid_amount"]
[1729889174888,0.09734407,66796.0,66795.0,0.075061]
[1729889175300,0.3608,66797.0,66795.0,0.075061]
[1729889175494,0.09734407,66796.0,66795.0,0.075061]
[1729889181396,0.075066,66790.0,66773.0,0.40570499]
[1729889181609,0.3608,66780.0,66773.0,0.3925]
[1729889181804,0.3608,66780.0,66773.0,0.0317]
[1729889182007,0.3608,66780.0,66779.0,0.075079]
[1729889186210,0.3608,66781.0,66774.0,0.075084]
[1729889186402,0.3608,66781.0,66780.0,0.075077]
[1729889187310,0.09734407,66787.0,66786.0,0.075071]
[1729889187507,0.09734407,66792.0,66790.0,0.075066]
[1729889188301,0.3608,66796.0,66790.0,0.075066]
[1729889188819,0.09734407,66793.0,66790.0,0.075066]
[1729889190305,0.3608,66796.0,66790.0,0.075066]
[1729889190706,0.09734407,66793.0,66790.0,0.075066]
[1729889190903,0.3608,66796.0,66790.0,0.075066]
[1729889193602,0.3608,66796.0,66790.0,0.524226]
[1729889194410,0.45814407,66796.0,66790.0,0.075066]
[1729889194715,0.45814407,66791.0,66790.0,0.075066]
[1729889196411,0.4257058,66791.0,66790.0,0.075066]
[1729889196716,0.3608,66791.0,66790.0,0.075066]
[1729889198312,0.435865,66791.0,66790.0,0.075066]
[1729889199009,0.3608,66791.0,66773.0,0.2048956]
[1729889199310,0.0649058,66781.0,66780.0,0.075077]
[1729889205015,0.1399818,66781.0,66780.0,0.075077]
[1729889205318,0.1399818,66781.0,66776.0,0.075082]
[1729889205519,0.4257058,66777.0,66776.0,0.075082]
[1729889205915,0.4906116,66777.0,66776.0,0.075082]
[1729889207820,0.5656936,66777.0,66772.0,0.075086]
[1729889208023,0.3608,66768.0,66767.0,0.07733844]
[1729889208211,0.4257058,66768.0,66767.0,0.07733844]
[1729889209016,0.4257058,66768.0,66767.0,0.075092]
[1729889211328,0.3608,66768.0,66767.0,0.075092]
[1729889214816,0.3608,66768.0,66767.0,0.2049036]
[1729889216026,0.3608,66768.0,66767.0,0.6542236]
[1729889216527,0.0953058,66780.0,66768.0,0.075091]
[1729889216528,0.3608,66769.0,66768.0,0.075091]
[1729889216723,0.0304,66780.0,66767.0,0.2057836]
[1729889217025,0.0304,66780.0,66776.0,0.075082]
[1729889217220,0.4264658,66783.0,66776.0,0.075082]
[1729889219024,0.5015398,66783.0,66776.0,0.075082]
[1729889219225,0.075085,66774.0,66771.0,0.075088]
[1729889219429,0.1298116,66772.0,66771.0,0.075088]
[1729889219617,0.0649058,66772.0,66771.0,0.075088]
[1729889222422,0.1298116,66772.0,66771.0,0.075088]
[1729889224032,0.0649058,66771.0,66751.0,0.00224697]
[1729889224329,0.3608,66760.0,66759.0,0.075101]
[1729889227923,0.3608,66760.0,66758.0,0.1298116]
[1729889227924,0.3608,66761.0,66760.0,0.0751]
[1729889228928,0.3608,66761.0,66760.0,0.08811261]
[1729889229133,0.3608,66761.0,66760.0,0.0751]
[1729889231225,0.3608,66763.0,66762.0,0.075098]
[1729889231427,0.3608,66763.0,66762.0,0.2049096]
[1729889232533,0.07782651,66777.0,66762.0,0.2049096]
[1729889232534,0.3608,66781.0,66765.0,0.075093]
[1729889232731,0.3608,66781.0,66780.0,0.2048886]
[1729889232936,0.3608,66781.0,66780.0,0.3356086]
[1729889233131,0.3608,66787.0,66786.0,0.075071]
[1729889234141,0.3608,66787.0,66781.0,0.0328]
[1729889234326,0.435869,66787.0,66782.0,0.075075]
[1729889234725,0.0649058,66784.0,66782.0,0.075075]
[1729889234936,0.075074,66783.0,66782.0,0.075075]
[1729889235741,0.0649058,66784.0,66783.0,0.075074]
[1729889236234,0.796669,66787.0,66783.0,0.075074]
[1729889237537,0.1399778,66785.0,66783.0,0.075074]
[1729889237838,0.0649058,66785.0,66783.0,0.075074]
[1729889238940,0.075073,66784.0,66783.0,0.075074]
[1729889240340,0.0649058,66785.0,66783.0,0.075074]
[1729889241234,0.3608,66784.0,66783.0,0.075074]
[1729889241642,0.7872658,66785.0,66784.0,0.075072]
[1729889241941,0.7865058,66785.0,66784.0,0.075072]
[1729889244341,0.7865058,66785.0,66772.0,0.1298116]
[1729889244342,1.2357058,66785.0,66767.0,0.04495655]
[1729889244541,0.3608,66768.0,66767.0,0.075091]
[1729889245247,0.3608,66776.0,66775.0,0.075082]
[1729889245539,0.3608,66776.0,66775.0,0.2048936]
[1729889248141,0.3608,66776.0,66775.0,0.3347052]
[1729889248341,0.3608,66785.0,66784.0,0.075072]
[1729889248540,0.3608,66785.0,66784.0,0.2048836]
[1729889249537,0.3608,66785.0,66784.0,0.075072]
[1729889249936,0.3608,66785.0,66784.0,0.2048836]
[1729889252053,0.3608,66785.0,66784.0,0.21773512]
[1729889254748,0.3608,66795.0,66794.0,0.075061]
[1729889254951,0.3608,66801.0,66800.0,0.075054]
[1729889255544,0.0649058,66800.0,66785.0,0.1306]
[1729889255747,0.3608,66794.0,66785.0,0.1306]
[1729889255951,0.075062,66793.0,66790.0,0.075065]
[1729889256152,0.075062,66793.0,66785.0,0.1306]
[1729889256365,0.075062,66793.0,66792.0,0.075063]
[1729889256761,0.3608,66794.0,66787.0,0.075068]
[1729889257058,0.3608,66788.0,66787.0,0.075068]
[1729889259655,0.435867,66788.0,66787.0,0.075068]
[1729889260955,0.075074,66784.0,66783.0,0.075073]
[1729889262453,0.0649058,66783.0,66774.0,0.17555655]
[1729889262659,0.3608,66775.0,66774.0,0.075085]
[1729889264857,0.435884,66775.0,66774.0,0.075085]
[1729889267073,0.7216,66775.0,66774.0,0.075085]
[1729889273163,0.3608,66775.0,66774.0,0.075085]
[1729889277058,0.3608,66775.0,66769.0,0.1298116]
[1729889277862,0.3608,66775.0,66774.0,0.075085]
[1729889278063,0.3608,66779.0,66778.0,0.07508]
[1729889278363,0.3608,66779.0,66778.0,0.2048916]
[1729889280470,0.3608,66779.0,66778.0,0.07508]
[1729889281778,0.5007848,66779.0,66778.0,0.07508]
[1729889282769,0.4257058,66779.0,66778.0,0.07508]
[1729889282977,0.3608,66779.0,66778.0,0.07508]
[1729889283884,0.3608,66786.0,66778.0,0.2048916]
[1729889284072,0.3608,66786.0,66785.0,0.075072]
[1729889285780,0.3608,66792.0,66791.0,0.075066]
[1729889285974,0.3608,66792.0,66791.0,0.2048776]
[1729889286679,0.3608,66800.0,66798.0,0.075057]
[1729889286875,0.7216,66800.0,66798.0,0.075057]
[1729889287376,0.7216,66800.0,66799.0,0.075057]
[1729889289578,0.7216,66800.0,66785.0,0.05819465]
[1729889289778,0.3608,66792.0,66791.0,0.075066]
[1729889290683,0.3608,66792.0,66791.0,0.2048776]
[1729889292477,0.3608,66792.0,66791.0,0.075066]
[1729889293571,0.075067,66790.0,66783.0,0.13072]
[1729889293775,0.3608,66786.0,66783.0,0.13072]
[1729889293975,0.3608,66786.0,66785.0,0.075073]
[1729889295577,0.3608,66786.0,66783.0,0.01290727]
[1729889295780,0.3608,66786.0,66781.0,0.1298116]
[1729889297779,0.3608,66783.0,66779.0,0.075079]
[1729889297979,0.3608,66783.0,66779.0,0.08832933]
[1729889299787,0.3608,66783.0,66779.0,0.01325033]
[1729889299983,0.3608,66783.0,66781.0,0.075077]
[1729889300188,0.3608,66783.0,66779.0,0.075079]
[1729889301484,0.435875,66783.0,66779.0,0.075079]
[1729889302081,0.3608,66783.0,66780.0,0.075077]
[1729889302278,0.435875,66783.0,66780.0,0.075077]
[1729889303308,0.3608,66783.0,66775.0,0.14295203]
[1729889303509,0.075076,66782.0,66776.0,0.075082]
[1729889304111,0.075076,66782.0,66779.0,0.075079]
[1729889305406,0.3608,66783.0,66775.0,0.1298116]
[1729889305604,0.3608,66777.0,66776.0,0.075082]
[1729889309290,0.3608,66777.0,66776.0,0.2048936]
[1729889309889,0.36164,66785.0,66784.0,0.075063]
[1729889310096,0.3608,66794.0,66785.0,0.075062]
[1729889310287,0.3608,66794.0,66793.0,0.075053]
[1729889310893,0.3608,66794.0,66793.0,0.075045]
[1729889311283,0.3608,66800.0,66791.0,0.1298116]
[1729889311489,0.0308,66812.0,66801.0,0.1298116]
[1729889311790,0.0308,66812.0,66802.0,0.075036]
[1729889312291,0.075028,66802.0,66801.0,0.1298116]
[1729889312495,0.0308,66812.0,66803.0,0.075027]
[1729889312496,0.075021,66809.0,66803.0,0.075027]
[1729889312694,0.0308,66812.0,66805.0,0.075025]
[1729889312889,0.105818,66812.0,66805.0,0.075025]
[1729889313088,0.075019,66811.0,66805.0,0.075025]
[1729889314088,0.07502,66810.0,66803.0,0.3608]
[1729889315596,0.07502,66810.0,66803.0,0.435827]
[1729889315898,0.04398746,66812.0,66803.0,0.435827]
[1729889316117,0.3608,66819.0,66814.0,0.075014]
[1729889316329,0.3608,66825.0,66821.0,0.1298116]
[1729889316494,0.435803,66825.0,66821.0,0.1298116]
[1729889316799,0.435803,66825.0,66819.0,0.075009]
[1729889317391,0.075004,66824.0,66819.0,0.075009]
[1729889318389,0.0649058,66831.0,66818.0,0.3608]
[1729889318589,0.0649058,66831.0,66819.0,0.0326]
[1729889319200,0.075004,66825.0,66819.0,0.0326]
[1729889319592,0.075004,66824.0,66819.0,0.0326]
[1729889320291,0.07780029,66831.0,66819.0,0.0326]
[1729889320490,0.075003,66826.0,66821.0,0.1298116]
[1729889321194,0.01289449,66831.0,66819.0,0.0326]
[1729889321195,0.01289449,66831.0,66825.0,0.1298116]
[1729889321387,0.00076,66834.0,66819.0,0.0326]
[1729889321388,0.00076,66834.0,66830.0,0.1298116]
[1729889321700,0.3608,66840.0,66826.0,0.36168]
[1729889321701,0.0649058,66830.0,66826.0,0.36168]
[1729889321889,0.075001,66827.0,66826.0,0.3608]
[1729889322295,0.0649058,66833.0,66821.0,0.1611116]
[1729889322502,0.075003,66826.0,66821.0,0.1611116]
[1729889324092,0.0635,66832.0,66821.0,0.1611116]
[1729889324298,0.075003,66825.0,66821.0,0.1611116]
[1729889325005,0.075003,66825.0,66824.0,0.3608]
[1729889327496,0.075003,66825.0,66821.0,0.24947627]
[1729889328002,0.075003,66825.0,66823.0,0.075005]
[1729889329297,0.075003,66825.0,66824.0,0.075004]
[1729889329700,0.075007,66821.0,66820.0,0.36168]
[1729889329906,0.075007,66821.0,66820.0,0.3608]
[1729889331106,0.0649058,66824.0,66816.0,0.075012]
[1729889331305,0.07501,66819.0,66816.0,0.075012]
[1729889332512,0.07501,66819.0,66813.0,0.12472]
[1729889332513,0.07501,66819.0,66817.0,0.075012]
[1729889333211,0.07501,66819.0,66817.0,0.435812]
[1729889334705,0.07501,66819.0,66818.0,0.075011]
[1729889339404,0.01301017,66821.0,66820.0,0.075009]
[1729889339606,0.02897461,66821.0,66820.0,0.2048206]
[1729889340410,0.01328217,66831.0,66820.0,0.2048206]
[1729889340615,0.02897377,66830.0,66829.0,0.074998]
[1729889340815,0.02897377,66830.0,66829.0,0.2048096]
[1729889341324,0.02897377,66830.0,66829.0,0.7165296]
[1729889341511,0.074985,66841.0,66840.0,0.074986]
[1729889341713,0.14081056,66841.0,66840.0,0.074986]
[1729889342209,0.10408635,66841.0,66840.0,0.074986]
[1729889342810,0.10416565,66841.0,66840.0,0.074986]
[1729889343316,0.074988,66839.0,66835.0,0.3608]
[1729889343507,0.02918065,66838.0,66836.0,0.074991]
[1729889343713,0.10416965,66838.0,66836.0,0.074991]
[1729889343913,0.02918065,66837.0,66836.0,0.074991]
[1729889344421,0.074989,66838.0,66836.0,0.074991]
[1729889344822,0.074989,66837.0,66836.0,0.074991]
[1729889346108,0.074989,66837.0,66836.0,0.3608]
[1729889346818,0.074987,66839.0,66838.0,0.074988]
[1729889351122,0.074979,66847.0,66845.0,0.07498]
[1729889351429,0.074979,66847.0,66846.0,0.074978]
[1729889351931,0.074974,66851.0,66849.0,0.074975]
[1729889352116,0.074975,66850.0,66849.0,0.074975]
[1729889352430,0.074971,66854.0,66848.0,0.3608]
[1729889352726,0.074971,66854.0,66852.0,0.074972]
[1729889353427,0.07495,66872.0,66862.0,0.074961]
[1729889353725,0.1398628,66866.0,66865.0,0.3608]
[1729889353949,0.1398628,66866.0,66849.0,0.3608]
[1729889353950,0.074968,66856.0,66855.0,0.3608]
[1729889354224,0.074968,66856.0,66849.0,0.3608]
[1729889354225,0.074975,66850.0,66849.0,0.3608]
[1729889355216,0.105475,66850.0,66849.0,0.3608]
[1729889355630,0.118474,66850.0,66849.0,0.3608]
[1729889355826,0.1833798,66850.0,66849.0,0.3608]
[1729889356217,0.1703808,66850.0,66849.0,0.3608]
[1729889358231,0.01321859,66852.0,66849.0,0.5655876]
[1729889358433,0.032,66855.0,66850.0,0.074975]
[1729889358629,0.074972,66853.0,66850.0,0.074975]
[1729889359527,0.032,66855.0,66850.0,0.04566135]
[1729889359528,0.074974,66851.0,66850.0,0.04566135]
[1729889359725,0.18766818,66851.0,66850.0,0.04566135]
[1729889362136,0.11269418,66851.0,66848.0,0.3608]
[1729889362337,0.18766918,66850.0,66848.0,0.3608]
[1729889362637,0.07498,66846.0,66845.0,0.0022438]
[1729889362827,0.18767418,66846.0,66845.0,0.0022438]
[1729889363640,0.18755885,66846.0,66845.0,0.0022438]
[1729889364736,0.11257885,66846.0,66845.0,0.0022438]
[1729889364932,0.18755885,66846.0,66845.0,0.0772248]
[1729889366128,0.14153535,66846.0,66845.0,0.0772248]
[1729889366433,0.18755642,66846.0,66845.0,0.0772248]
[1729889366635,0.11257642,66846.0,66845.0,0.0772248]
[1729889366835,0.11257642,66851.0,66845.0,0.0772248]
[1729889367027,0.22427674,66853.0,66845.0,0.0022438]
[1729889367028,0.11257509,66850.0,66845.0,0.0022438]
[1729889367227,0.14930474,66853.0,66849.0,0.3608]
[1729889367430,0.07496,66864.0,66859.0,0.074964]
[1729889367626,0.074962,66862.0,66861.0,0.3608]
[1729889367832,0.01280944,66869.0,66861.0,0.4906116]
[1729889368030,0.0622,66870.0,66861.0,0.4906116]
[1729889368031,0.106654,66870.0,66866.0,0.074957]
[1729889368332,0.074955,66869.0,66866.0,0.074957]
[1729889369342,0.074956,66868.0,66866.0,0.074957]
[1729889370133,0.01300811,66870.0,66867.0,0.074956]
[1729889370343,0.0649058,66876.0,66867.0,0.074956]
[1729889370643,0.074953,66871.0,66867.0,0.074956]
[1729889370840,0.01276108,66873.0,66869.0,0.4257058]
[1729889371140,0.074943,66879.0,66876.0,0.074946]
[1729889372445,0.04569247,66885.0,66877.0,0.074944]
[1729889372942,0.04569247,66885.0,66875.0,0.3608]
[1729889372943,0.074939,66882.0,66878.0,0.074944]
[1729889373832,0.04569247,66885.0,66880.0,0.074941]
[1729889374036,0.04569247,66885.0,66875.0,0.3608]
[1729889374236,0.074938,66883.0,66876.0,0.074946]
[1729889374439,0.1398438,66883.0,66876.0,0.074946]
[1729889376346,0.0649058,66879.0,66875.0,0.3608]
[1729889376533,0.1298116,66876.0,66875.0,0.3608]
[1729889376738,0.2047606,66876.0,66875.0,0.3608]
[1729889376939,0.2378606,66876.0,66875.0,0.3608]
[1729889377438,0.074955,66871.0,66869.0,0.3608]
[1729889377641,0.1398608,66870.0,66869.0,0.3608]
[1729889378642,0.1729608,66870.0,66869.0,0.3608]
[1729889378839,0.1729608,66870.0,66857.0,0.36168]
[1729889378840,0.5466458,66870.0,66857.0,0.36168]
[1729889379035,0.5466458,66870.0,66857.0,0.3608]
[1729889379036,0.1398748,66858.0,66857.0,0.3608]
[1729889379442,0.074977,66851.0,66850.0,0.3608]
[1729889383449,0.0649058,66853.0,66850.0,0.3608]
[1729889383634,0.074972,66856.0,66851.0,0.074977]
[1729889384735,0.0649058,66854.0,66851.0,0.074977]
[1729889385347,0.074975,66853.0,66850.0,0.3608]
[1729889386047,0.01278708,66858.0,66850.0,0.3608]
[1729889386048,0.2047886,66851.0,66850.0,0.3608]
[1729889389647,0.1398828,66851.0,66850.0,0.3608]
[1729889390442,0.2047886,66851.0,66850.0,0.3608]
[1729889390645,0.074983,66846.0,66845.0,0.3630438]
[1729889390842,0.1398888,66846.0,66845.0,0.3630438]
[1729889391743,0.2047946,66846.0,66845.0,0.3630438]
[1729889392446,0.1298116,66846.0,66837.0,0.3608]
[1729889392641,0.1398978,66838.0,66837.0,0.3608]
[1729889393141,0.1298116,66838.0,66837.0,0.3608]
[1729889393349,0.1298116,66838.0,66837.0,0.435793]
[1729889393546,0.1298116,66838.0,66837.0,0.3608]
[1729889394645,0.1298116,66838.0,66837.0,0.435793]
[1729889395239,0.14302285,66838.0,66837.0,0.435793]
[1729889395637,0.1298116,66838.0,66837.0,0.435793]
[1729889399252,0.0649058,66838.0,66837.0,0.435793]
[1729889401141,0.1298116,66842.0,66837.0,0.3608]
[1729889401344,0.01294629,66847.0,66846.0,0.074983]
[1729889401543,0.0649058,66854.0,66849.0,0.074979]
[1729889401544,0.074978,66851.0,66849.0,0.074979]
[1729889401747,0.0649058,66850.0,66849.0,0.074979]
[1729889402451,0.0649058,66850.0,66846.0,0.3608]
[1729889402652,0.0649058,66847.0,66846.0,0.435783]
[1729889402951,0.1398878,66847.0,66846.0,0.3608]
[1729889403342,0.1398878,66847.0,66842.0,0.0314]
[1729889403554,0.074988,66841.0,66840.0,0.3608]
[1729889405660,0.0649058,66843.0,66834.0,0.121]
[1729889405856,0.0649058,66837.0,66836.0,0.3928]
[1729889406744,0.1398988,66837.0,66836.0,0.3928]
[1729889406950,0.075002,66829.0,66828.0,0.3608]
[1729889407253,0.1399078,66829.0,66828.0,0.3608]
[1729889407648,0.43662,66847.0,66828.0,1.5496258]
[1729889407649,0.00084,66847.0,66828.0,1.5496258]
[1729889407850,0.0649058,66856.0,66846.0,0.7216]
[1729889408054,0.0319,66868.0,66855.0,0.3608]
[1729889408363,0.074946,66877.0,66867.0,0.4257058]
[1729889408561,0.074942,66880.0,66875.0,0.3608]
[1729889408864,0.0649058,66879.0,66875.0,0.3608]
[1729889409067,0.1398518,66876.0,66875.0,0.3608]
[1729889409258,0.0649058,66876.0,66875.0,0.3608]
[1729889409562,0.074944,66878.0,66875.0,0.3608]
[1729889409856,0.0649058,66880.0,66875.0,0.3608]
[1729889410161,0.01339469,66884.0,66875.0,0.3608]
[1729889410162,0.0649058,66876.0,66875.0,0.3608]
[1729889410459,0.0649058,66877.0,66875.0,0.3608]
[1729889410654,0.0649058,66880.0,66875.0,0.3608]
[1729889410852,0.01339469,66884.0,66875.0,0.4257058]
[1729889411051,0.0649058,66894.0,66883.0,0.3608]
[1729889411363,0.0649058,66895.0,66883.0,0.3608]
[1729889411364,0.074925,66895.0,66890.0,0.3608]
[1729889411551,0.1398308,66895.0,66893.0,0.3608]
[1729889411755,0.15318551,66895.0,66893.0,0.3608]
[1729889411956,0.0649058,66894.0,66893.0,0.3608]
[1729889413261,0.15318551,66895.0,66893.0,0.3608]
[1729889413262,0.01335471,66895.0,66893.0,0.3608]
[1729889413564,0.0605,66913.0,66893.0,0.3608]
[1729889413565,0.0649058,66897.0,66893.0,0.3608]
[1729889413770,0.1398288,66897.0,66893.0,0.3608]
[1729889415760,0.00076,66917.0,66896.0,0.0649058]
[1729889415961,0.0749,66917.0,66916.0,0.3608]
[1729889416266,0.2047116,66917.0,66916.0,0.3608]
[1729889417156,0.21759152,66917.0,66916.0,0.3608]
[1729889419067,0.01287992,66917.0,66916.0,0.4906116]
[1729889419262,0.074888,66921.0,66916.0,0.4906116]
[1729889419967,0.1299058,66931.0,66916.0,0.4906116]
[1729889419968,0.0317,66931.0,66916.0,0.4906116]
[1729889420265,0.074873,66934.0,66930.0,0.3608]
[1729889420953,0.074871,66932.0,66930.0,0.3608]
[1729889421367,0.074863,66937.0,66930.0,0.3608]
[1729889421668,0.01305621,66945.0,66936.0,0.4906116]
[1729889421873,0.074846,66952.0,66944.0,0.4906116]
[1729889422060,0.074845,66953.0,66951.0,0.4906116]
[1729889422373,0.0649058,66952.0,66951.0,0.3608]
[1729889423769,0.5129858,66952.0,66951.0,0.3608]
[1729889424072,0.074847,66945.0,66944.0,0.3608]
[1729889424254,0.17197881,66945.0,66944.0,0.3608]
[1729889424460,0.62009881,66945.0,66944.0,0.3608]
[1729889427160,0.62009881,66945.0,66944.0,0.31843131]
[1729889427456,0.074854,66939.0,66938.0,0.3608]
[1729889427656,0.17198581,66939.0,66938.0,0.3608]
[1729889427968,0.62014581,66939.0,66938.0,0.3608]
[1729889428269,0.69211193,66939.0,66930.0,0.3608]
[1729889428464,0.07196612,66938.0,66930.0,0.3608]
[1729889429163,0.06996713,66938.0,66930.0,0.3608]
[1729889429367,0.51812713,66938.0,66923.0,0.3608]
[1729889429563,0.17200281,66924.0,66923.0,0.3608]
[1729889429767,0.20258119,66924.0,66923.0,0.3608]
[1729889430158,0.10544938,66924.0,66923.0,0.3608]
[1729889430358,0.10566739,66924.0,66923.0,0.3608]
[1729889430662,0.074864,66930.0,66923.0,0.3608]
[1729889430857,0.074864,66930.0,66929.0,0.3608]
[1729889431068,0.3608,66948.0,66929.0,0.3608]
[1729889431274,0.11151573,66941.0,66935.0,0.3608]
[1729889431470,0.074853,66940.0,66935.0,0.21345384]
[1729889431667,0.37374471,66942.0,66935.0,0.21345384]
[1729889432365,0.074858,66937.0,66935.0,0.21345384]
[1729889432767,0.074858,66936.0,66935.0,0.21345384]
[1729889433366,0.3608,66972.0,66941.0,0.19426362]
[1729889433574,0.00772007,66971.0,66961.0,0.3608]
[1729889433775,0.3608,66972.0,66961.0,0.3608]
[1729889433776,0.0129756,66972.0,66971.0,0.19426362]
[1729889433964,0.074804,66984.0,66971.0,0.62988162]
[1729889434165,0.074804,66984.0,66983.0,0.3608]
[1729889434469,0.074793,66995.0,66983.0,0.55506362]
[1729889434771,0.51001134,67007.0,66994.0,0.19426362]
[1729889434772,0.3608,67007.0,66994.0,0.19426362]
[1729889434965,0.074784,67002.0,66994.0,0.19426362]
[1729889435773,0.37484617,67007.0,66991.0,0.3608]
[1729889435974,0.09713181,66992.0,66991.0,0.3608]
[1729889436269,0.074801,66987.0,66983.0,0.3608]
[1729889436663,0.09713181,66991.0,66983.0,0.3608]
[1729889436869,0.3608,66984.0,66974.0,0.3608]
[1729889437067,0.09713181,66979.0,66966.0,0.3608]
[1729889437371,0.074819,66971.0,66966.0,0.3608]
[1729889437571,0.17195381,66968.0,66966.0,0.3608]
[1729889438276,0.8088,66967.0,66953.0,0.3608]
[1729889438476,0.09713181,66954.0,66953.0,0.3608]
[1729889438674,0.17196781,66955.0,66953.0,0.3608]
[1729889438675,0.09713181,66959.0,66953.0,0.3608]
[1729889438969,0.074832,66959.0,66953.0,0.3608]
[1729889439173,0.00076,66967.0,66956.0,0.3608]
[1729889439363,0.09713181,66959.0,66956.0,0.3608]
[1729889439566,0.09713181,66961.0,66956.0,0.3608]
[1729889439767,0.074833,66958.0,66956.0,0.3608]
[1729889440581,0.09713181,66957.0,66956.0,0.3608]
[1729889441777,0.17196581,66957.0,66956.0,0.3608]
[1729889442167,0.54517181,66957.0,66945.0,0.3608]
[1729889442376,0.3608,66960.0,66935.0,0.0334408]
[1729889442377,0.074848,66945.0,66939.0,0.3608]
[1729889442583,0.09713181,66942.0,66939.0,0.3608]
[1729889442768,0.074848,66945.0,66939.0,0.3608]
[1729889443370,0.09713181,66948.0,66939.0,0.3608]
[1729889443776,0.17197681,66948.0,66939.0,0.3608]
[1729889444168,0.074847,66946.0,66939.0,0.3608]
[1729889445874,0.074847,66946.0,66939.0,0.435654]
[1729889446083,0.0131204,66948.0,66943.0,0.19426362]
[1729889446282,0.3608,66953.0,66948.0,0.074844]
[1729889446473,0.37408739,66953.0,66948.0,0.074844]
[1729889446675,0.01328739,66953.0,66948.0,0.074844]
[1729889446983,0.09713181,66967.0,66952.0,0.074838]
[1729889447182,0.03089565,66966.0,66952.0,0.074838]
[1729889447381,0.07483,66960.0,66952.0,0.074838]
[1729889448278,0.37461778,66967.0,66956.0,0.074834]
[1729889448485,0.37461778,66967.0,66954.0,0.19426362]
[1729889448486,0.03117244,66966.0,66954.0,0.19426362]
[1729889448685,0.03117244,66966.0,66951.0,0.3608]
[1729889448686,0.03117244,66965.0,66961.0,0.074828]
[1729889448879,0.37385778,66967.0,66961.0,0.074828]
[1729889449079,0.37385778,66967.0,66964.0,0.19426362]
[1729889449487,0.37385778,66967.0,66959.0,0.19426362]
[1729889449789,0.37385778,66967.0,66959.0,0.26909462]
[1729889449989,0.37385778,66967.0,66959.0,0.074831]
[1729889450185,0.074824,66966.0,66959.0,0.074831]
[1729889450781,0.37473778,66967.0,66958.0,0.04485433]
[1729889450985,0.37385778,66967.0,66962.0,0.074828]
[1729889452486,0.01305778,66967.0,66966.0,0.3608]
[1729889452689,0.074821,66969.0,66966.0,0.3608]
[1729889452883,0.09713181,66967.0,66966.0,0.3608]
[1729889453084,0.17195381,66967.0,66966.0,0.3608]
[1729889454991,0.17195381,66967.0,66957.0,0.40565433]
[1729889454992,0.074825,66965.0,66957.0,0.40565433]
[1729889455287,0.074825,66965.0,66959.0,0.074831]
[1729889455488,0.01282685,66969.0,66960.0,0.07483]
[1729889455687,0.19426362,66974.0,66961.0,0.074829]
[1729889455893,0.09713181,66968.0,66961.0,0.074829]
[1729889456390,0.19426362,66968.0,66961.0,0.074829]
[1729889456589,0.074826,66964.0,66958.0,0.04485433]
[1729889456977,0.26908462,66968.0,66958.0,0.04485433]
[1729889457182,0.3608,66975.0,66967.0,0.3608]
[1729889457183,0.09713181,66974.0,66967.0,0.3608]
[1729889457383,0.012896,66974.0,66968.0,0.074821]
[1729889457583,0.074813,66976.0,66969.0,0.07482]
[1729889458383,0.0317,66978.0,66967.0,0.40565433]
[1729889458384,0.074814,66974.0,66967.0,0.40565433]
[1729889459000,0.074816,66973.0,66967.0,0.48047633]
[1729889459382,0.09713181,66973.0,66968.0,0.04485433]
[1729889459590,0.07482,66969.0,66968.0,0.04485433]
[1729889459791,0.07482,66969.0,66967.0,0.3608]
[1729889460300,0.19426362,66968.0,66967.0,0.04450389]
[1729889460593,0.19426362,66968.0,66964.0,0.36172]
[1729889460594,0.074824,66965.0,66964.0,0.3608]
[1729889460988,0.09713181,66973.0,66964.0,0.3608]
[1729889461189,0.074823,66967.0,66964.0,0.3608]
[1729889461382,0.074824,66965.0,66964.0,0.3608]
[1729889461690,0.09713181,66971.0,66964.0,0.3608]
[1729889461894,0.074822,66967.0,66966.0,0.04456731]
[1729889462096,0.09713181,66968.0,66964.0,0.3608]
[1729889462097,0.17195481,66966.0,66965.0,0.04456731]
[1729889462286,0.17195481,66966.0,66965.0,0.05940545]
[1729889462492,0.074824,66965.0,66964.0,0.3608]
[1729889463000,0.105624,66965.0,66964.0,0.3608]
[1729889463196,0.105624,66965.0,66964.0,0.40538066]
[1729889464090,0.105624,66965.0,66964.0,0.3608]
[1729889464291,0.105624,66965.0,66964.0,0.42023579]
[1729889464599,0.105624,66965.0,66964.0,0.3608]
[1729889464989,0.074824,66965.0,66964.0,0.3608]
[1729889465692,0.09713181,66969.0,66964.0,0.3608]
[1729889465892,0.09713181,66972.0,66964.0,0.3608]
[1729889466192,0.09713181,66973.0,66964.0,0.3608]
[1729889466399,0.09713181,66973.0,66965.0,0.074824]
[1729889466789,0.03179992,66972.0,66965.0,0.074824]
[1729889466989,0.09713181,66973.0,66965.0,0.074824]
[1729889467199,0.074817,66972.0,66966.0,0.074823]
[1729889467395,0.11374706,66973.0,66964.0,0.3608]
[1729889467593,0.074819,66970.0,66964.0,0.3608]
[1729889468194,0.07482,66969.0,66964.0,0.435625]
[1729889471199,0.07482,66969.0,66964.0,0.3608]
[1729889471400,0.07482,66969.0,66965.0,0.074824]
[1729889473002,0.07482,66969.0,66966.0,0.04465781]
[1729889473497,0.074816,66972.0,66966.0,0.04465781]
[1729889473698,0.074816,66972.0,66971.0,0.3608]
[1729889480117,0.06824448,66972.0,66971.0,0.435617]
[1729889480301,0.03157286,66972.0,66971.0,0.5649686]
[1729889480603,0.07479,66996.0,66989.0,0.074796]
[1729889480798,0.07479,66996.0,66995.0,0.3608]
[1729889480995,0.12910053,66996.0,66995.0,0.3608]
[1729889481209,0.19377633,66996.0,66995.0,0.3608]
[1729889482501,0.22611634,66996.0,66995.0,0.3608]
[1729889483214,0.18816533,66996.0,66995.0,0.3608]
[1729889483708,0.59968472,66996.0,66973.0,0.3608]
[1729889483911,0.09701581,66976.0,66975.0,0.074813]
[1729889484105,0.09701581,66976.0,66973.0,0.3608]
[1729889485399,0.17182781,66976.0,66973.0,0.3608]
[1729889486009,0.074814,66974.0,66973.0,0.3608]
[1729889486213,0.0369651,66974.0,66958.0,0.3608]